﻿Department Family,Entity,Date,Expense Type,Expense Area,Supplier,SME,Transaction Number,Amount,Description,Expenditure Type
HM Land Registry,HM Land Registry,14/02/2018,Stationery National Contracts,Birkenhead Office,Banner Group Limited,Large,1205987,"1,617.94",Stationery,Administration
HM Land Registry,HM Land Registry,14/02/2018,Stationery National Contracts,Central Facilities Management Team,Banner Group Limited,Large,1205987,318.39,Stationery,Administration
HM Land Registry,HM Land Registry,14/02/2018,Stationery National Contracts,Central Operations Group,Banner Group Limited,Large,1205987,385.93,Stationery,Administration
HM Land Registry,HM Land Registry,14/02/2018,Stationery National Contracts,Chief Executives Office,Banner Group Limited,Large,1205987,160.19,Stationery,Administration
HM Land Registry,HM Land Registry,14/02/2018,Stationery National Contracts,Coventry Office,Banner Group Limited,Large,1205987,365.44,Stationery,Administration
HM Land Registry,HM Land Registry,14/02/2018,Stationery National Contracts,Croydon Office,Banner Group Limited,Large,1205987,"1,177.78",Stationery,Administration
HM Land Registry,HM Land Registry,14/02/2018,Stationery National Contracts,Director of Information Systems,Banner Group Limited,Large,1205987,618.35,Stationery,Administration
HM Land Registry,HM Land Registry,14/02/2018,Stationery National Contracts,Durham Office,Banner Group Limited,Large,1205987,"2,901.95",Stationery,Administration
HM Land Registry,HM Land Registry,14/02/2018,Stationery National Contracts,Finance Group,Banner Group Limited,Large,1205987,119.73,Stationery,Administration
HM Land Registry,HM Land Registry,14/02/2018,Stationery National Contracts,Fylde Office,Banner Group Limited,Large,1205987,"1,302.37",Stationery,Administration
HM Land Registry,HM Land Registry,14/02/2018,Stationery National Contracts,Gloucester Office,Banner Group Limited,Large,1205987,"2,069.80",Stationery,Administration
HM Land Registry,HM Land Registry,14/02/2018,Stationery National Contracts,Hull Office,Banner Group Limited,Large,1205987,"1,563.98",Stationery,Administration
HM Land Registry,HM Land Registry,14/02/2018,Stationery National Contracts,IS Service Delivery,Banner Group Limited,Large,1205987,"6,850.38",Stationery,Administration
HM Land Registry,HM Land Registry,14/02/2018,Stationery National Contracts,Land Charges,Banner Group Limited,Large,1205987,531.03,Stationery,Administration
HM Land Registry,HM Land Registry,14/02/2018,Stationery National Contracts,Leicester Office,Banner Group Limited,Large,1205987,524.08,Stationery,Administration
HM Land Registry,HM Land Registry,14/02/2018,Stationery National Contracts,Local Land Charges,Banner Group Limited,Large,1205987,131.22,Stationery,Administration
HM Land Registry,HM Land Registry,14/02/2018,Stationery National Contracts,Marketing Services Team,Banner Group Limited,Large,1205987,41.70,Stationery,Administration
HM Land Registry,HM Land Registry,14/02/2018,Stationery National Contracts,Nottingham Office,Banner Group Limited,Large,1205987,538.29,Stationery,Administration
HM Land Registry,HM Land Registry,14/02/2018,Stationery National Contracts,Peterborough Office,Banner Group Limited,Large,1205987,"1,053.76",Stationery,Administration
HM Land Registry,HM Land Registry,14/02/2018,Stationery National Contracts,Plymouth Office,Banner Group Limited,Large,1205987,640.68,Stationery,Administration
HM Land Registry,HM Land Registry,14/02/2018,Stationery National Contracts,Projects and Programme Centre,Banner Group Limited,Large,1205987,273.71,Stationery,Administration
HM Land Registry,HM Land Registry,14/02/2018,Stationery National Contracts,Telford Office,Banner Group Limited,Large,1205987,"1,161.38",Stationery,Administration
HM Land Registry,HM Land Registry,14/02/2018,Stationery National Contracts,Wales Office,Banner Group Limited,Large,1205987,"3,282.11",Stationery,Administration
HM Land Registry,HM Land Registry,14/02/2018,Stationery National Contracts,Weymouth Office,Banner Group Limited,Large,1205987,634.91,Stationery,Administration
HM Land Registry,HM Land Registry,14/02/2018,Stationery National Contracts,Organisation & Employee Development,Banner Group Limited,Large,1205987,53.28,Stationery,Administration
HM Land Registry,HM Land Registry,06/02/2018,Fixed Asset Interface Account,Balance Sheet,Canon (UK) Ltd,Large,1204947,"39,585.60",Fixed Assets,Administration
HM Land Registry,HM Land Registry,07/02/2018,Computer Equipment Maintenance,IS Service Delivery,CGI IT UK Limited,Large,1205164,"61,500.00",Computer Equipment Maintenance,Administration
HM Land Registry,HM Land Registry,09/02/2018,Software as a Service (Cloud),Dir: Finance,CGI IT UK Limited,Large,1205635,"38,624.79",Cloud Computing Services,Administration
HM Land Registry,HM Land Registry,01/02/2018,Gas,Birkenhead Office,Corona Energy,Large,1207236,"2,132.28",Gas,Administration
HM Land Registry,HM Land Registry,01/02/2018,Gas,Croydon Office,Corona Energy,Large,1207236,"2,391.66",Gas,Administration
HM Land Registry,HM Land Registry,01/02/2018,Gas,Director of Information Systems,Corona Energy,Large,1207236,"1,359.26",Gas,Administration
HM Land Registry,HM Land Registry,01/02/2018,Gas,Durham Office,Corona Energy,Large,1207236,"2,157.73",Gas,Administration
HM Land Registry,HM Land Registry,01/02/2018,Gas,Fylde Office,Corona Energy,Large,1207236,"2,864.52",Gas,Administration
HM Land Registry,HM Land Registry,01/02/2018,Gas,Gloucester Computer Centre,Corona Energy,Large,1207236,547.03,Gas,Administration
HM Land Registry,HM Land Registry,01/02/2018,Gas,Gloucester Office,Corona Energy,Large,1207236,"3,521.34",Gas,Administration
HM Land Registry,HM Land Registry,01/02/2018,Gas,Hull Office,Corona Energy,Large,1207236,"3,906.53",Gas,Administration
HM Land Registry,HM Land Registry,01/02/2018,Gas,Leicester Office,Corona Energy,Large,1207236,"2,894.38",Gas,Administration
HM Land Registry,HM Land Registry,01/02/2018,Gas,Nottingham Office,Corona Energy,Large,1207236,708.94,Gas,Administration
HM Land Registry,HM Land Registry,01/02/2018,Gas,Telford Office,Corona Energy,Large,1207236,"3,026.54",Gas,Administration
HM Land Registry,HM Land Registry,01/02/2018,Gas,Wales Office,Corona Energy,Large,1207236,"1,907.54",Gas,Administration
HM Land Registry,HM Land Registry,01/02/2018,Gas,Weymouth Office,Corona Energy,Large,1207236,"2,242.05",Gas,Administration
HM Land Registry,HM Land Registry,06/02/2018,Computer Equipment Maintenance,IS Service Delivery,Datrix Ltd,SME,1204943,"2,015.00",Computer Equipment Maintenance,Administration
HM Land Registry,HM Land Registry,06/02/2018,Computer Equipment Non HP Licences,IS Service Delivery,Datrix Ltd,SME,1204943,"26,851.99",Computer Equipment Non HP Licences,Administration
HM Land Registry,HM Land Registry,01/02/2018,Gas,Birkenhead Office,EDF Energy,Large,1207237,"6,216.52",Gas,Administration
HM Land Registry,HM Land Registry,01/02/2018,Gas,Croydon Office,EDF Energy,Large,1207237,"8,187.41",Gas,Administration
HM Land Registry,HM Land Registry,01/02/2018,Gas,Director of Information Systems,EDF Energy,Large,1207237,"58,082.05",Gas,Administration
HM Land Registry,HM Land Registry,01/02/2018,Gas,Durham Office,EDF Energy,Large,1207237,"5,947.09",Gas,Administration
HM Land Registry,HM Land Registry,01/02/2018,Gas,Fylde Office,EDF Energy,Large,1207237,"5,358.41",Gas,Administration
HM Land Registry,HM Land Registry,01/02/2018,Gas,Gloucester Computer Centre,EDF Energy,Large,1207237,"34,207.19",Gas,Administration
HM Land Registry,HM Land Registry,01/02/2018,Gas,Gloucester Office,EDF Energy,Large,1207237,"5,913.59",Gas,Administration
HM Land Registry,HM Land Registry,01/02/2018,Gas,Hull Office,EDF Energy,Large,1207237,"7,452.29",Gas,Administration
HM Land Registry,HM Land Registry,01/02/2018,Gas,Leicester Office,EDF Energy,Large,1207237,"4,667.48",Gas,Administration
HM Land Registry,HM Land Registry,01/02/2018,Gas,Nottingham Office,EDF Energy,Large,1207237,"8,832.98",Gas,Administration
HM Land Registry,HM Land Registry,01/02/2018,Gas,Telford Office,EDF Energy,Large,1207237,"5,504.02",Gas,Administration
HM Land Registry,HM Land Registry,01/02/2018,Gas,Wales Office,EDF Energy,Large,1207237,"5,831.29",Gas,Administration
HM Land Registry,HM Land Registry,01/02/2018,Gas,Weymouth Office,EDF Energy,Large,1207237,"6,784.63",Gas,Administration
HM Land Registry,HM Land Registry,01/02/2018,Gas,Birkenhead Office,EDF Energy,Large,1207238,"5,487.01",Gas,Administration
HM Land Registry,HM Land Registry,01/02/2018,Gas,Croydon Office,EDF Energy,Large,1207238,"7,898.33",Gas,Administration
HM Land Registry,HM Land Registry,01/02/2018,Gas,Director of Information Systems,EDF Energy,Large,1207238,"56,099.65",Gas,Administration
HM Land Registry,HM Land Registry,01/02/2018,Gas,Durham Office,EDF Energy,Large,1207238,"5,367.55",Gas,Administration
HM Land Registry,HM Land Registry,01/02/2018,Gas,Fylde Office,EDF Energy,Large,1207238,"5,207.99",Gas,Administration
HM Land Registry,HM Land Registry,01/02/2018,Gas,Gloucester Computer Centre,EDF Energy,Large,1207238,"35,110.22",Gas,Administration
HM Land Registry,HM Land Registry,01/02/2018,Gas,Gloucester Office,EDF Energy,Large,1207238,"5,442.76",Gas,Administration
HM Land Registry,HM Land Registry,01/02/2018,Gas,Hull Office,EDF Energy,Large,1207238,"7,177.18",Gas,Administration
HM Land Registry,HM Land Registry,01/02/2018,Gas,Leicester Office,EDF Energy,Large,1207238,"4,392.49",Gas,Administration
HM Land Registry,HM Land Registry,01/02/2018,Gas,Nottingham Office,EDF Energy,Large,1207238,"9,146.12",Gas,Administration
HM Land Registry,HM Land Registry,01/02/2018,Gas,Telford Office,EDF Energy,Large,1207238,"5,210.08",Gas,Administration
HM Land Registry,HM Land Registry,01/02/2018,Gas,Wales Office,EDF Energy,Large,1207238,"5,264.76",Gas,Administration
HM Land Registry,HM Land Registry,01/02/2018,Gas,Weymouth Office,EDF Energy,Large,1207238,"6,669.14",Gas,Administration
HM Land Registry,HM Land Registry,26/02/2018,Consultancy Non-IT Advice Only,Projects and Programme Centre,Ernst & Young LLP,Large,1206881,"144,495.00",Consultancy Non-IT Advice Only,Administration
HM Land Registry,HM Land Registry,05/02/2018,Software as a Service (Cloud),IS Service Delivery,Europa Technologies Limited,SME,1204650,"64,950.00",Cloud Computing Services,Administration
HM Land Registry,HM Land Registry,01/02/2018,Computer Equipment Maintenance,IS Service Delivery,IBM United Kingdom Ltd,Large,1204651,"450,200.89",Computer Equipment Maintenance,Administration
HM Land Registry,HM Land Registry,23/02/2018,Computer Equipment Non HP Licences,Dir: (Statutory) Digital Services,Insight Direct (UK) Ltd,Large,1206755,"28,695.16",Computer Equipment Non HP Licences,Administration
HM Land Registry,HM Land Registry,01/02/2018,Computer Equipment Non HP Licences,IS Service Delivery,Insight Software.com Ltd,Large,1201423,"31,104.00",Computer Equipment Non HP Licences,Administration
HM Land Registry,HM Land Registry,15/02/2018,Assets in the Course of Construction,Balance Sheet,Kainos Software Ltd,Large,1202541,"183,565.77",Assets in the Course of Construction,Administration
HM Land Registry,HM Land Registry,15/02/2018,Professional Services,Program: Local Land Charges,Kainos Software Ltd,Large,1202541,"6,807.47",Professional Services,Administration
HM Land Registry,HM Land Registry,15/02/2018,Employment Agency Staff Costs,Dir: (Statutory) Digital Services,Kainos Software Ltd,Large,1205287,"25,333.22",Employment Agency Staff Costs,Administration
HM Land Registry,HM Land Registry,15/02/2018,Professional Services,Program: Local Land Charges,Kainos Software Ltd,Large,1205160,"395,370.00",Professional Services,Administration
HM Land Registry,HM Land Registry,21/02/2018,Other External Training,Organisation & Employee Development,Korn Ferry Hay Group Limited,Large,1206360,"26,594.00",Other External Training,Administration
HM Land Registry,HM Land Registry,01/02/2018,Professional Services,Dir: Information Systems,Ordnance Survey,Large,1204074,"50,730.79",Professional Services,Administration
HM Land Registry,HM Land Registry,23/02/2018,Travel & Subsistence General Duty,Birkenhead Office,Redfern Travel Ltd,SME,1206901,462.40,Travel & Subsistence,Administration
HM Land Registry,HM Land Registry,23/02/2018,Travel & Subsistence General Duty,Business Development,Redfern Travel Ltd,SME,1206901,"3,152.72",Travel & Subsistence,Administration
HM Land Registry,HM Land Registry,23/02/2018,Travel & Subsistence General Duty,Central Facilities Management Team,Redfern Travel Ltd,SME,1206901,"2,802.90",Travel & Subsistence,Administration
HM Land Registry,HM Land Registry,23/02/2018,Travel & Subsistence General Duty,Central Operations Group,Redfern Travel Ltd,SME,1206901,"1,883.05",Travel & Subsistence,Administration
HM Land Registry,HM Land Registry,23/02/2018,Travel & Subsistence General Duty,Chief Executives Office,Redfern Travel Ltd,SME,1206901,429.50,Travel & Subsistence,Administration
HM Land Registry,HM Land Registry,23/02/2018,Travel & Subsistence General Duty,Commercial Director,Redfern Travel Ltd,SME,1206901,533.00,Travel & Subsistence,Administration
HM Land Registry,HM Land Registry,23/02/2018,Travel & Subsistence General Duty,Corp Procurement,Redfern Travel Ltd,SME,1206901,543.00,Travel & Subsistence,Administration
HM Land Registry,HM Land Registry,23/02/2018,Travel & Subsistence General Duty,Corporate Legal Services,Redfern Travel Ltd,SME,1206901,833.12,Travel & Subsistence,Administration
HM Land Registry,HM Land Registry,23/02/2018,Travel & Subsistence Dual Workplace,Corporate Legal Services,Redfern Travel Ltd,SME,1206901,113.55,Travel & Subsistence,Administration
HM Land Registry,HM Land Registry,23/02/2018,Travel & Subsistence General Duty,Coventry Office,Redfern Travel Ltd,SME,1206901,529.60,Travel & Subsistence,Administration
HM Land Registry,HM Land Registry,23/02/2018,Travel & Subsistence General Duty,Croydon Office,Redfern Travel Ltd,SME,1206901,589.80,Travel & Subsistence,Administration
HM Land Registry,HM Land Registry,23/02/2018,Travel & Subsistence General Duty,Data Group,Redfern Travel Ltd,SME,1206901,"2,628.83",Travel & Subsistence,Administration
HM Land Registry,HM Land Registry,23/02/2018,Travel & Subsistence General Duty,Dir: (Statutory) Digital Services,Redfern Travel Ltd,SME,1206901,"1,805.16",Travel & Subsistence,Administration
HM Land Registry,HM Land Registry,23/02/2018,Travel & Subsistence General Duty,Dir: Operations,Redfern Travel Ltd,SME,1206901,"1,515.20",Travel & Subsistence,Administration
HM Land Registry,HM Land Registry,23/02/2018,Travel & Subsistence General Duty,Director of Information Systems,Redfern Travel Ltd,SME,1206901,"2,602.83",Travel & Subsistence,Administration
HM Land Registry,HM Land Registry,23/02/2018,Travel & Subsistence General Duty,Director of Legal Services,Redfern Travel Ltd,SME,1206901,22.75,Travel & Subsistence,Administration
HM Land Registry,HM Land Registry,23/02/2018,Travel & Subsistence General Duty,Director of Operations,Redfern Travel Ltd,SME,1206901,567.89,Travel & Subsistence,Administration
HM Land Registry,HM Land Registry,23/02/2018,Travel & Subsistence General Duty,Durham Office,Redfern Travel Ltd,SME,1206901,"1,050.25",Travel & Subsistence,Administration
HM Land Registry,HM Land Registry,23/02/2018,Travel & Subsistence Dual Workplace,Durham Office,Redfern Travel Ltd,SME,1206901,41.99,Travel & Subsistence,Administration
HM Land Registry,HM Land Registry,23/02/2018,Travel & Subsistence General Duty,Finance Group,Redfern Travel Ltd,SME,1206901,682.70,Travel & Subsistence,Administration
HM Land Registry,HM Land Registry,23/02/2018,Travel & Subsistence General Duty,Fylde Office,Redfern Travel Ltd,SME,1206901,282.10,Travel & Subsistence,Administration
HM Land Registry,HM Land Registry,23/02/2018,Travel & Subsistence General Duty,Gloucester Office,Redfern Travel Ltd,SME,1206901,196.20,Travel & Subsistence,Administration
HM Land Registry,HM Land Registry,23/02/2018,Travel & Subsistence General Duty,HR Group,Redfern Travel Ltd,SME,1206901,"4,014.34",Travel & Subsistence,Administration
HM Land Registry,HM Land Registry,23/02/2018,Travel & Subsistence General Duty,Hull Office,Redfern Travel Ltd,SME,1206901,"1,315.15",Travel & Subsistence,Administration
HM Land Registry,HM Land Registry,23/02/2018,Travel & Subsistence General Duty,Leicester Office,Redfern Travel Ltd,SME,1206901,250.80,Travel & Subsistence,Administration
HM Land Registry,HM Land Registry,23/02/2018,Travel & Subsistence General Duty,Local Land Charges,Redfern Travel Ltd,SME,1206901,"1,729.24",Travel & Subsistence,Administration
HM Land Registry,HM Land Registry,23/02/2018,Travel & Subsistence General Duty,Local Lawyer Group,Redfern Travel Ltd,SME,1206901,"1,071.70",Travel & Subsistence,Administration
HM Land Registry,HM Land Registry,23/02/2018,Travel & Subsistence General Duty,Marketing Services Team,Redfern Travel Ltd,SME,1206901,563.80,Travel & Subsistence,Administration
HM Land Registry,HM Land Registry,23/02/2018,Travel & Subsistence General Duty,Nottingham Office,Redfern Travel Ltd,SME,1206901,376.70,Travel & Subsistence,Administration
HM Land Registry,HM Land Registry,23/02/2018,Travel & Subsistence General Duty,Peterborough Office,Redfern Travel Ltd,SME,1206901,108.50,Travel & Subsistence,Administration
HM Land Registry,HM Land Registry,23/02/2018,Travel & Subsistence General Duty,Plymouth Office,Redfern Travel Ltd,SME,1206901,344.90,Travel & Subsistence,Administration
HM Land Registry,HM Land Registry,23/02/2018,Travel & Subsistence General Duty,Product Development & Management,Redfern Travel Ltd,SME,1206901,"1,141.30",Travel & Subsistence,Administration
HM Land Registry,HM Land Registry,23/02/2018,Travel & Subsistence General Duty,Program: Local Land Charges,Redfern Travel Ltd,SME,1206901,"2,600.81",Travel & Subsistence,Administration
HM Land Registry,HM Land Registry,23/02/2018,Travel & Subsistence General Duty,Projects and Programme Centre,Redfern Travel Ltd,SME,1206901,"1,975.00",Travel & Subsistence,Administration
HM Land Registry,HM Land Registry,23/02/2018,Travel & Subsistence General Duty,Property Asset Management Group,Redfern Travel Ltd,SME,1206901,632.10,Travel & Subsistence,Administration
HM Land Registry,HM Land Registry,23/02/2018,Travel & Subsistence General Duty,Research & Data Mining,Redfern Travel Ltd,SME,1206901,180.00,Travel & Subsistence,Administration
HM Land Registry,HM Land Registry,23/02/2018,Travel & Subsistence General Duty,Strategy Team,Redfern Travel Ltd,SME,1206901,71.59,Travel & Subsistence,Administration
HM Land Registry,HM Land Registry,23/02/2018,Travel & Subsistence General Duty,Telford Office,Redfern Travel Ltd,SME,1206901,318.28,Travel & Subsistence,Administration
HM Land Registry,HM Land Registry,23/02/2018,Travel & Subsistence General Duty,Wales Office,Redfern Travel Ltd,SME,1206901,333.79,Travel & Subsistence,Administration
HM Land Registry,HM Land Registry,23/02/2018,Travel & Subsistence General Duty,Weymouth Office,Redfern Travel Ltd,SME,1206901,543.00,Travel & Subsistence,Administration
HM Land Registry,HM Land Registry,23/02/2018,Travel & Subsistence General Duty,Dir: Finance,Redfern Travel Ltd,SME,1206901,"2,939.66",Travel & Subsistence,Administration
HM Land Registry,HM Land Registry,23/02/2018,Travel & Subsistence General Duty,HR Operations,Redfern Travel Ltd,SME,1206901,62.70,Travel & Subsistence,Administration
HM Land Registry,HM Land Registry,23/02/2018,Travel & Subsistence General Duty,Organisation & Employee Development,Redfern Travel Ltd,SME,1206901,0.60,Travel & Subsistence,Administration
HM Land Registry,HM Land Registry,23/02/2018,Travel & Subsistence General Duty,International Business Development,Redfern Travel Ltd,SME,1206901,307.00,Travel & Subsistence,Administration
HM Land Registry,HM Land Registry,23/02/2018,Travel & Subsistence General Duty,Communications Team,Redfern Travel Ltd,SME,1206901,"1,292.05",Travel & Subsistence,Administration
HM Land Registry,HM Land Registry,23/02/2018,Travel & Subsistence General Duty,Diversity,Redfern Travel Ltd,SME,1206901,111.40,Travel & Subsistence,Administration
HM Land Registry,HM Land Registry,23/02/2018,Travel & Subsistence General Duty,Operations Assurance and Risk,Redfern Travel Ltd,SME,1206901,402.60,Travel & Subsistence,Administration
HM Land Registry,HM Land Registry,23/02/2018,Travel & Subsistence General Duty,Operation Focus,Redfern Travel Ltd,SME,1206901,800.20,Travel & Subsistence,Administration
HM Land Registry,HM Land Registry,23/02/2018,Travel & Subsistence General Duty,Customer Services,Redfern Travel Ltd,SME,1206901,"2,243.89",Travel & Subsistence,Administration
HM Land Registry,HM Land Registry,23/02/2018,Travel & Subsistence General Duty,International Relations,Redfern Travel Ltd,SME,1206901,171.80,Travel & Subsistence,Administration
HM Land Registry,HM Land Registry,23/02/2018,Travel & Subsistence General Duty,LR Sports Council,Redfern Travel Ltd,SME,1206901,68.60,Travel & Subsistence,Administration
HM Land Registry,HM Land Registry,23/02/2018,Travel & Subsistence General Duty,HR Strategy & Policy,Redfern Travel Ltd,SME,1206901,169.90,Travel & Subsistence,Administration
HM Land Registry,HM Land Registry,23/02/2018,Travel & Subsistence General Duty,Finance Director,Redfern Travel Ltd,SME,1206901,80.50,Travel & Subsistence,Administration
HM Land Registry,HM Land Registry,23/02/2018,Travel & Subsistence General Duty,Local Lawyer Support Group,Redfern Travel Ltd,SME,1206901,554.65,Travel & Subsistence,Administration
HM Land Registry,HM Land Registry,23/02/2018,Travel & Subsistence General Duty,Service Management - Application Processing,Redfern Travel Ltd,SME,1206901,76.00,Travel & Subsistence,Administration
HM Land Registry,HM Land Registry,28/02/2018,Assets in the Course of Construction,Balance Sheet,Redfern Travel Ltd,SME,1207291,44.90,Assets in the Course of Construction,Administration
HM Land Registry,HM Land Registry,28/02/2018,Travel & Subsistence General Duty,Birkenhead Office,Redfern Travel Ltd,SME,1207291,491.25,Travel & Subsistence,Administration
HM Land Registry,HM Land Registry,28/02/2018,Travel & Subsistence General Duty,Business Development,Redfern Travel Ltd,SME,1207291,"2,054.60",Travel & Subsistence,Administration
HM Land Registry,HM Land Registry,28/02/2018,Travel & Subsistence General Duty,Central Facilities Management Team,Redfern Travel Ltd,SME,1207291,"1,293.26",Travel & Subsistence,Administration
HM Land Registry,HM Land Registry,28/02/2018,Travel & Subsistence Dual Workplace,Central Facilities Management Team,Redfern Travel Ltd,SME,1207291,76.59,Travel & Subsistence,Administration
HM Land Registry,HM Land Registry,28/02/2018,Travel & Subsistence General Duty,Central Operations Group,Redfern Travel Ltd,SME,1207291,183.05,Travel & Subsistence,Administration
HM Land Registry,HM Land Registry,28/02/2018,Travel & Subsistence General Duty,Chief Executives Office,Redfern Travel Ltd,SME,1207291,778.10,Travel & Subsistence,Administration
HM Land Registry,HM Land Registry,28/02/2018,Travel & Subsistence General Duty,Commercial & Customer Strategy & Performance,Redfern Travel Ltd,SME,1207291,123.00,Travel & Subsistence,Administration
HM Land Registry,HM Land Registry,28/02/2018,Travel & Subsistence General Duty,Commercial Director,Redfern Travel Ltd,SME,1207291,75.60,Travel & Subsistence,Administration
HM Land Registry,HM Land Registry,28/02/2018,Travel & Subsistence Overseas Travel,Commercial Director,Redfern Travel Ltd,SME,1207291,804.57,Travel & Subsistence,Administration
HM Land Registry,HM Land Registry,28/02/2018,Travel & Subsistence General Duty,Corp Procurement,Redfern Travel Ltd,SME,1207291,885.64,Travel & Subsistence,Administration
HM Land Registry,HM Land Registry,28/02/2018,Travel & Subsistence General Duty,Corporate Legal Services,Redfern Travel Ltd,SME,1207291,"1,713.71",Travel & Subsistence,Administration
HM Land Registry,HM Land Registry,28/02/2018,Travel & Subsistence Dual Workplace,Corporate Legal Services,Redfern Travel Ltd,SME,1207291,120.85,Travel & Subsistence,Administration
HM Land Registry,HM Land Registry,28/02/2018,Travel & Subsistence General Duty,Coventry Office,Redfern Travel Ltd,SME,1207291,421.99,Travel & Subsistence,Administration
HM Land Registry,HM Land Registry,28/02/2018,Travel & Subsistence General Duty,Croydon Office,Redfern Travel Ltd,SME,1207291,300.80,Travel & Subsistence,Administration
HM Land Registry,HM Land Registry,28/02/2018,Travel & Subsistence General Duty,Data Group,Redfern Travel Ltd,SME,1207291,"2,985.69",Travel & Subsistence,Administration
HM Land Registry,HM Land Registry,28/02/2018,Travel & Subsistence Overseas Travel,Data Group,Redfern Travel Ltd,SME,1207291,111.02,Travel & Subsistence,Administration
HM Land Registry,HM Land Registry,28/02/2018,Travel & Subsistence General Duty,Dir: (Statutory) Digital Services,Redfern Travel Ltd,SME,1207291,"3,116.49",Travel & Subsistence,Administration
HM Land Registry,HM Land Registry,28/02/2018,Travel & Subsistence General Duty,Dir: Operations,Redfern Travel Ltd,SME,1207291,"1,359.35",Travel & Subsistence,Administration
HM Land Registry,HM Land Registry,28/02/2018,Travel & Subsistence General Duty,Director of Information Systems,Redfern Travel Ltd,SME,1207291,"2,652.83",Travel & Subsistence,Administration
HM Land Registry,HM Land Registry,28/02/2018,Travel & Subsistence General Duty,Director of Operations,Redfern Travel Ltd,SME,1207291,207.20,Travel & Subsistence,Administration
HM Land Registry,HM Land Registry,28/02/2018,Travel & Subsistence General Duty,Durham Office,Redfern Travel Ltd,SME,1207291,399.40,Travel & Subsistence,Administration
HM Land Registry,HM Land Registry,28/02/2018,Travel & Subsistence Dual Workplace,Durham Office,Redfern Travel Ltd,SME,1207291,280.60,Travel & Subsistence,Administration
HM Land Registry,HM Land Registry,28/02/2018,Travel & Subsistence General Duty,Finance Group,Redfern Travel Ltd,SME,1207291,322.40,Travel & Subsistence,Administration
HM Land Registry,HM Land Registry,28/02/2018,Travel & Subsistence General Duty,Fylde Office,Redfern Travel Ltd,SME,1207291,169.50,Travel & Subsistence,Administration
HM Land Registry,HM Land Registry,28/02/2018,Travel & Subsistence General Duty,Gloucester Office,Redfern Travel Ltd,SME,1207291,125.68,Travel & Subsistence,Administration
HM Land Registry,HM Land Registry,28/02/2018,Travel & Subsistence General Duty,HR Group,Redfern Travel Ltd,SME,1207291,"2,870.44",Travel & Subsistence,Administration
HM Land Registry,HM Land Registry,28/02/2018,Travel & Subsistence Dual Workplace,HR Group,Redfern Travel Ltd,SME,1207291,80.60,Travel & Subsistence,Administration
HM Land Registry,HM Land Registry,28/02/2018,Travel & Subsistence General Duty,Hull Office,Redfern Travel Ltd,SME,1207291,275.00,Travel & Subsistence,Administration
HM Land Registry,HM Land Registry,28/02/2018,Travel & Subsistence General Duty,Leicester Office,Redfern Travel Ltd,SME,1207291,347.62,Travel & Subsistence,Administration
HM Land Registry,HM Land Registry,28/02/2018,Travel & Subsistence General Duty,Local Land Charges,Redfern Travel Ltd,SME,1207291,"1,822.82",Travel & Subsistence,Administration
HM Land Registry,HM Land Registry,28/02/2018,Travel & Subsistence General Duty,Local Lawyer Group,Redfern Travel Ltd,SME,1207291,"1,387.39",Travel & Subsistence,Administration
HM Land Registry,HM Land Registry,28/02/2018,Travel & Subsistence General Duty,Marketing Services Team,Redfern Travel Ltd,SME,1207291,265.10,Travel & Subsistence,Administration
HM Land Registry,HM Land Registry,28/02/2018,Travel & Subsistence General Duty,Nottingham Office,Redfern Travel Ltd,SME,1207291,323.80,Travel & Subsistence,Administration
HM Land Registry,HM Land Registry,28/02/2018,Travel & Subsistence General Duty,Peterborough Office,Redfern Travel Ltd,SME,1207291,357.95,Travel & Subsistence,Administration
HM Land Registry,HM Land Registry,28/02/2018,Travel & Subsistence General Duty,Plymouth Office,Redfern Travel Ltd,SME,1207291,147.68,Travel & Subsistence,Administration
HM Land Registry,HM Land Registry,28/02/2018,Travel & Subsistence General Duty,Product Development & Management,Redfern Travel Ltd,SME,1207291,"3,554.55",Travel & Subsistence,Administration
HM Land Registry,HM Land Registry,28/02/2018,Travel & Subsistence General Duty,Program: Local Land Charges,Redfern Travel Ltd,SME,1207291,"3,319.73",Travel & Subsistence,Administration
HM Land Registry,HM Land Registry,28/02/2018,Travel & Subsistence General Duty,Projects and Programme Centre,Redfern Travel Ltd,SME,1207291,"1,243.60",Travel & Subsistence,Administration
HM Land Registry,HM Land Registry,28/02/2018,Travel & Subsistence General Duty,Property Asset Management Group,Redfern Travel Ltd,SME,1207291,398.90,Travel & Subsistence,Administration
HM Land Registry,HM Land Registry,28/02/2018,Travel & Subsistence General Duty,Research & Data Mining,Redfern Travel Ltd,SME,1207291,"1,208.34",Travel & Subsistence,Administration
HM Land Registry,HM Land Registry,28/02/2018,Travel & Subsistence General Duty,Strategy Team,Redfern Travel Ltd,SME,1207291,490.92,Travel & Subsistence,Administration
HM Land Registry,HM Land Registry,28/02/2018,Travel & Subsistence General Duty,Telford Office,Redfern Travel Ltd,SME,1207291,189.10,Travel & Subsistence,Administration
HM Land Registry,HM Land Registry,28/02/2018,Travel & Subsistence General Duty,Wales Office,Redfern Travel Ltd,SME,1207291,382.40,Travel & Subsistence,Administration
HM Land Registry,HM Land Registry,28/02/2018,Travel & Subsistence General Duty,Weymouth Office,Redfern Travel Ltd,SME,1207291,488.59,Travel & Subsistence,Administration
HM Land Registry,HM Land Registry,28/02/2018,Travel & Subsistence General Duty,Dir: Finance,Redfern Travel Ltd,SME,1207291,"1,338.70",Travel & Subsistence,Administration
HM Land Registry,HM Land Registry,28/02/2018,Travel & Subsistence General Duty,HR Operations,Redfern Travel Ltd,SME,1207291,182.00,Travel & Subsistence,Administration
HM Land Registry,HM Land Registry,28/02/2018,Travel & Subsistence General Duty,Organisation & Employee Development,Redfern Travel Ltd,SME,1207291,87.80,Travel & Subsistence,Administration
HM Land Registry,HM Land Registry,28/02/2018,Travel & Subsistence General Duty,Internal Audit,Redfern Travel Ltd,SME,1207291,417.52,Travel & Subsistence,Administration
HM Land Registry,HM Land Registry,28/02/2018,Travel & Subsistence General Duty,International Business Development,Redfern Travel Ltd,SME,1207291,274.10,Travel & Subsistence,Administration
HM Land Registry,HM Land Registry,28/02/2018,Travel & Subsistence General Duty,Communications Team,Redfern Travel Ltd,SME,1207291,845.95,Travel & Subsistence,Administration
HM Land Registry,HM Land Registry,28/02/2018,Travel & Subsistence General Duty,Operations Assurance and Risk,Redfern Travel Ltd,SME,1207291,133.20,Travel & Subsistence,Administration
HM Land Registry,HM Land Registry,28/02/2018,Travel & Subsistence General Duty,Operation Focus,Redfern Travel Ltd,SME,1207291,538.10,Travel & Subsistence,Administration
HM Land Registry,HM Land Registry,28/02/2018,Travel & Subsistence General Duty,Customer Services,Redfern Travel Ltd,SME,1207291,"1,004.09",Travel & Subsistence,Administration
HM Land Registry,HM Land Registry,28/02/2018,Travel & Subsistence Overseas Travel,International Relations,Redfern Travel Ltd,SME,1207291,"2,572.30",Travel & Subsistence,Administration
HM Land Registry,HM Land Registry,28/02/2018,Travel & Subsistence General Duty,LR Sports Council,Redfern Travel Ltd,SME,1207291,52.20,Travel & Subsistence,Administration
HM Land Registry,HM Land Registry,28/02/2018,Travel & Subsistence General Duty,HR Strategy & Policy,Redfern Travel Ltd,SME,1207291,8.66,Travel & Subsistence,Administration
HM Land Registry,HM Land Registry,28/02/2018,Travel & Subsistence General Duty,Finance Director,Redfern Travel Ltd,SME,1207291,0.60,Travel & Subsistence,Administration
HM Land Registry,HM Land Registry,28/02/2018,Travel & Subsistence General Duty,Service Management - Application Processing,Redfern Travel Ltd,SME,1207291,660.80,Travel & Subsistence,Administration
HM Land Registry,HM Land Registry,28/02/2018,Travel & Subsistence General Duty,Guarantee & Litigation,Redfern Travel Ltd,SME,1207291,-66.30,Travel & Subsistence,Administration
HM Land Registry,HM Land Registry,28/02/2018,Assets in the Course of Construction,Balance Sheet,Redfern Travel Ltd,SME,1207292,390.40,Assets in the Course of Construction,Administration
HM Land Registry,HM Land Registry,28/02/2018,Travel & Subsistence General Duty,Birkenhead Office,Redfern Travel Ltd,SME,1207292,17.20,Travel & Subsistence,Administration
HM Land Registry,HM Land Registry,28/02/2018,Travel & Subsistence General Duty,Business Development,Redfern Travel Ltd,SME,1207292,559.18,Travel & Subsistence,Administration
HM Land Registry,HM Land Registry,28/02/2018,Travel & Subsistence General Duty,Central Facilities Management Team,Redfern Travel Ltd,SME,1207292,"1,262.25",Travel & Subsistence,Administration
HM Land Registry,HM Land Registry,28/02/2018,Travel & Subsistence Dual Workplace,Central Facilities Management Team,Redfern Travel Ltd,SME,1207292,114.70,Travel & Subsistence,Administration
HM Land Registry,HM Land Registry,28/02/2018,Travel & Subsistence General Duty,Central Operations Group,Redfern Travel Ltd,SME,1207292,937.12,Travel & Subsistence,Administration
HM Land Registry,HM Land Registry,28/02/2018,Travel & Subsistence General Duty,Chief Executives Office,Redfern Travel Ltd,SME,1207292,802.40,Travel & Subsistence,Administration
HM Land Registry,HM Land Registry,28/02/2018,Travel & Subsistence General Duty,Commercial Director,Redfern Travel Ltd,SME,1207292,124.30,Travel & Subsistence,Administration
HM Land Registry,HM Land Registry,28/02/2018,Travel & Subsistence General Duty,Corp Procurement,Redfern Travel Ltd,SME,1207292,668.40,Travel & Subsistence,Administration
HM Land Registry,HM Land Registry,28/02/2018,Travel & Subsistence General Duty,Corporate Legal Services,Redfern Travel Ltd,SME,1207292,968.75,Travel & Subsistence,Administration
HM Land Registry,HM Land Registry,28/02/2018,Travel & Subsistence General Duty,Coventry Office,Redfern Travel Ltd,SME,1207292,252.80,Travel & Subsistence,Administration
HM Land Registry,HM Land Registry,28/02/2018,Travel & Subsistence General Duty,Croydon Office,Redfern Travel Ltd,SME,1207292,65.20,Travel & Subsistence,Administration
HM Land Registry,HM Land Registry,28/02/2018,Travel & Subsistence General Duty,Data Group,Redfern Travel Ltd,SME,1207292,482.09,Travel & Subsistence,Administration
HM Land Registry,HM Land Registry,28/02/2018,Travel & Subsistence General Duty,Dir: (Statutory) Digital Services,Redfern Travel Ltd,SME,1207292,"3,609.27",Travel & Subsistence,Administration
HM Land Registry,HM Land Registry,28/02/2018,Travel & Subsistence General Duty,Dir: Operations,Redfern Travel Ltd,SME,1207292,"1,670.75",Travel & Subsistence,Administration
HM Land Registry,HM Land Registry,28/02/2018,Travel & Subsistence General Duty,Director of Information Systems,Redfern Travel Ltd,SME,1207292,"3,019.03",Travel & Subsistence,Administration
HM Land Registry,HM Land Registry,28/02/2018,Travel & Subsistence General Duty,Director of Operations,Redfern Travel Ltd,SME,1207292,-292.70,Travel & Subsistence,Administration
HM Land Registry,HM Land Registry,28/02/2018,Travel & Subsistence General Duty,Durham Office,Redfern Travel Ltd,SME,1207292,571.71,Travel & Subsistence,Administration
HM Land Registry,HM Land Registry,28/02/2018,Travel & Subsistence General Duty,Finance Group,Redfern Travel Ltd,SME,1207292,187.70,Travel & Subsistence,Administration
HM Land Registry,HM Land Registry,28/02/2018,Travel & Subsistence General Duty,Forward Scanning,Redfern Travel Ltd,SME,1207292,171.60,Travel & Subsistence,Administration
HM Land Registry,HM Land Registry,28/02/2018,Travel & Subsistence General Duty,Fylde Office,Redfern Travel Ltd,SME,1207292,42.35,Travel & Subsistence,Administration
HM Land Registry,HM Land Registry,28/02/2018,Travel & Subsistence General Duty,Gloucester Office,Redfern Travel Ltd,SME,1207292,83.60,Travel & Subsistence,Administration
HM Land Registry,HM Land Registry,28/02/2018,Travel & Subsistence General Duty,HR Group,Redfern Travel Ltd,SME,1207292,"1,079.06",Travel & Subsistence,Administration
HM Land Registry,HM Land Registry,28/02/2018,Travel & Subsistence General Duty,Hull Office,Redfern Travel Ltd,SME,1207292,224.30,Travel & Subsistence,Administration
HM Land Registry,HM Land Registry,28/02/2018,Travel & Subsistence General Duty,Leicester Office,Redfern Travel Ltd,SME,1207292,124.00,Travel & Subsistence,Administration
HM Land Registry,HM Land Registry,28/02/2018,Travel & Subsistence General Duty,Local Land Charges,Redfern Travel Ltd,SME,1207292,896.13,Travel & Subsistence,Administration
HM Land Registry,HM Land Registry,28/02/2018,Travel & Subsistence General Duty,Local Lawyer Group,Redfern Travel Ltd,SME,1207292,862.00,Travel & Subsistence,Administration
HM Land Registry,HM Land Registry,28/02/2018,Travel & Subsistence General Duty,Marketing Services Team,Redfern Travel Ltd,SME,1207292,177.39,Travel & Subsistence,Administration
HM Land Registry,HM Land Registry,28/02/2018,Travel & Subsistence General Duty,Nottingham Office,Redfern Travel Ltd,SME,1207292,66.50,Travel & Subsistence,Administration
HM Land Registry,HM Land Registry,28/02/2018,Travel & Subsistence General Duty,Peterborough Office,Redfern Travel Ltd,SME,1207292,25.10,Travel & Subsistence,Administration
HM Land Registry,HM Land Registry,28/02/2018,Travel & Subsistence General Duty,Plymouth Office,Redfern Travel Ltd,SME,1207292,95.30,Travel & Subsistence,Administration
HM Land Registry,HM Land Registry,28/02/2018,Travel & Subsistence General Duty,Product Development & Management,Redfern Travel Ltd,SME,1207292,"1,984.11",Travel & Subsistence,Administration
HM Land Registry,HM Land Registry,28/02/2018,Travel & Subsistence General Duty,Program: Local Land Charges,Redfern Travel Ltd,SME,1207292,"1,915.06",Travel & Subsistence,Administration
HM Land Registry,HM Land Registry,28/02/2018,Travel & Subsistence General Duty,Projects and Programme Centre,Redfern Travel Ltd,SME,1207292,"1,298.90",Travel & Subsistence,Administration
HM Land Registry,HM Land Registry,28/02/2018,Travel & Subsistence General Duty,Property Asset Management Group,Redfern Travel Ltd,SME,1207292,695.59,Travel & Subsistence,Administration
HM Land Registry,HM Land Registry,28/02/2018,Travel & Subsistence General Duty,Research & Data Mining,Redfern Travel Ltd,SME,1207292,998.50,Travel & Subsistence,Administration
HM Land Registry,HM Land Registry,28/02/2018,Travel & Subsistence General Duty,Strategy Team,Redfern Travel Ltd,SME,1207292,-133.45,Travel & Subsistence,Administration
HM Land Registry,HM Land Registry,28/02/2018,Travel & Subsistence General Duty,Wales Office,Redfern Travel Ltd,SME,1207292,808.50,Travel & Subsistence,Administration
HM Land Registry,HM Land Registry,28/02/2018,Travel & Subsistence General Duty,Weymouth Office,Redfern Travel Ltd,SME,1207292,75.60,Travel & Subsistence,Administration
HM Land Registry,HM Land Registry,28/02/2018,Travel & Subsistence General Duty,Dir: Finance,Redfern Travel Ltd,SME,1207292,"2,313.10",Travel & Subsistence,Administration
HM Land Registry,HM Land Registry,28/02/2018,Travel & Subsistence General Duty,HR Operations,Redfern Travel Ltd,SME,1207292,771.20,Travel & Subsistence,Administration
HM Land Registry,HM Land Registry,28/02/2018,Travel & Subsistence General Duty,Registration Legal Services Group,Redfern Travel Ltd,SME,1207292,0.60,Travel & Subsistence,Administration
HM Land Registry,HM Land Registry,28/02/2018,Travel & Subsistence General Duty,Organisation & Employee Development,Redfern Travel Ltd,SME,1207292,225.80,Travel & Subsistence,Administration
HM Land Registry,HM Land Registry,28/02/2018,Travel & Subsistence General Duty,Internal Audit,Redfern Travel Ltd,SME,1207292,133.80,Travel & Subsistence,Administration
HM Land Registry,HM Land Registry,28/02/2018,Travel & Subsistence General Duty,International Business Development,Redfern Travel Ltd,SME,1207292,225.20,Travel & Subsistence,Administration
HM Land Registry,HM Land Registry,28/02/2018,Travel & Subsistence General Duty,Communications Team,Redfern Travel Ltd,SME,1207292,674.79,Travel & Subsistence,Administration
HM Land Registry,HM Land Registry,28/02/2018,Travel & Subsistence General Duty,Operations Assurance and Risk,Redfern Travel Ltd,SME,1207292,124.90,Travel & Subsistence,Administration
HM Land Registry,HM Land Registry,28/02/2018,Travel & Subsistence General Duty,Operation Focus,Redfern Travel Ltd,SME,1207292,227.90,Travel & Subsistence,Administration
HM Land Registry,HM Land Registry,28/02/2018,Travel & Subsistence General Duty,Customer Services,Redfern Travel Ltd,SME,1207292,659.99,Travel & Subsistence,Administration
HM Land Registry,HM Land Registry,28/02/2018,Travel & Subsistence General Duty,Service Management - Application Processing,Redfern Travel Ltd,SME,1207292,596.64,Travel & Subsistence,Administration
HM Land Registry,HM Land Registry,28/02/2018,Assets in the Course of Construction,Balance Sheet,Redfern Travel Ltd,SME,1207293,64.96,Assets in the Course of Construction,Administration
HM Land Registry,HM Land Registry,28/02/2018,Travel & Subsistence General Duty,Birkenhead Office,Redfern Travel Ltd,SME,1207293,380.98,Travel & Subsistence,Administration
HM Land Registry,HM Land Registry,28/02/2018,Travel & Subsistence General Duty,Business Development,Redfern Travel Ltd,SME,1207293,"1,285.05",Travel & Subsistence,Administration
HM Land Registry,HM Land Registry,28/02/2018,Travel & Subsistence General Duty,Central Facilities Management Team,Redfern Travel Ltd,SME,1207293,"2,359.00",Travel & Subsistence,Administration
HM Land Registry,HM Land Registry,28/02/2018,Travel & Subsistence Dual Workplace,Central Facilities Management Team,Redfern Travel Ltd,SME,1207293,77.60,Travel & Subsistence,Administration
HM Land Registry,HM Land Registry,28/02/2018,Travel & Subsistence General Duty,Central Operations Group,Redfern Travel Ltd,SME,1207293,360.98,Travel & Subsistence,Administration
HM Land Registry,HM Land Registry,28/02/2018,Travel & Subsistence General Duty,Chief Executives Office,Redfern Travel Ltd,SME,1207293,855.75,Travel & Subsistence,Administration
HM Land Registry,HM Land Registry,28/02/2018,Travel & Subsistence General Duty,Commercial Director,Redfern Travel Ltd,SME,1207293,244.00,Travel & Subsistence,Administration
HM Land Registry,HM Land Registry,28/02/2018,Travel & Subsistence General Duty,Corp Procurement,Redfern Travel Ltd,SME,1207293,846.10,Travel & Subsistence,Administration
HM Land Registry,HM Land Registry,28/02/2018,Travel & Subsistence General Duty,Corporate Legal Services,Redfern Travel Ltd,SME,1207293,"1,904.48",Travel & Subsistence,Administration
HM Land Registry,HM Land Registry,28/02/2018,Travel & Subsistence Dual Workplace,Corporate Legal Services,Redfern Travel Ltd,SME,1207293,31.15,Travel & Subsistence,Administration
HM Land Registry,HM Land Registry,28/02/2018,Travel & Subsistence General Duty,Coventry Office,Redfern Travel Ltd,SME,1207293,378.18,Travel & Subsistence,Administration
HM Land Registry,HM Land Registry,28/02/2018,Travel & Subsistence General Duty,Croydon Office,Redfern Travel Ltd,SME,1207293,274.37,Travel & Subsistence,Administration
HM Land Registry,HM Land Registry,28/02/2018,Travel & Subsistence General Duty,Data Group,Redfern Travel Ltd,SME,1207293,"1,065.75",Travel & Subsistence,Administration
HM Land Registry,HM Land Registry,28/02/2018,Travel & Subsistence General Duty,Dir: (Statutory) Digital Services,Redfern Travel Ltd,SME,1207293,"4,995.60",Travel & Subsistence,Administration
HM Land Registry,HM Land Registry,28/02/2018,Travel & Subsistence General Duty,Dir: Operations,Redfern Travel Ltd,SME,1207293,"1,210.95",Travel & Subsistence,Administration
HM Land Registry,HM Land Registry,28/02/2018,Travel & Subsistence General Duty,Director of Information Systems,Redfern Travel Ltd,SME,1207293,"2,862.21",Travel & Subsistence,Administration
HM Land Registry,HM Land Registry,28/02/2018,Travel & Subsistence General Duty,Director of Legal Services,Redfern Travel Ltd,SME,1207293,94.00,Travel & Subsistence,Administration
HM Land Registry,HM Land Registry,28/02/2018,Travel & Subsistence General Duty,Director of Operations,Redfern Travel Ltd,SME,1207293,75.97,Travel & Subsistence,Administration
HM Land Registry,HM Land Registry,28/02/2018,Travel & Subsistence General Duty,Durham Office,Redfern Travel Ltd,SME,1207293,563.22,Travel & Subsistence,Administration
HM Land Registry,HM Land Registry,28/02/2018,Travel & Subsistence General Duty,Finance Group,Redfern Travel Ltd,SME,1207293,"1,369.21",Travel & Subsistence,Administration
HM Land Registry,HM Land Registry,28/02/2018,Travel & Subsistence General Duty,Forward Scanning,Redfern Travel Ltd,SME,1207293,301.05,Travel & Subsistence,Administration
HM Land Registry,HM Land Registry,28/02/2018,Travel & Subsistence General Duty,Fylde Office,Redfern Travel Ltd,SME,1207293,474.38,Travel & Subsistence,Administration
HM Land Registry,HM Land Registry,28/02/2018,Travel & Subsistence General Duty,Gloucester Office,Redfern Travel Ltd,SME,1207293,57.10,Travel & Subsistence,Administration
HM Land Registry,HM Land Registry,28/02/2018,Travel & Subsistence General Duty,HR Group,Redfern Travel Ltd,SME,1207293,"1,670.98",Travel & Subsistence,Administration
HM Land Registry,HM Land Registry,28/02/2018,Travel & Subsistence General Duty,Hull Office,Redfern Travel Ltd,SME,1207293,385.49,Travel & Subsistence,Administration
HM Land Registry,HM Land Registry,28/02/2018,Travel & Subsistence General Duty,IS Service Delivery,Redfern Travel Ltd,SME,1207293,80.60,Travel & Subsistence,Administration
HM Land Registry,HM Land Registry,28/02/2018,Travel & Subsistence General Duty,Leicester Office,Redfern Travel Ltd,SME,1207293,121.39,Travel & Subsistence,Administration
HM Land Registry,HM Land Registry,28/02/2018,Travel & Subsistence General Duty,Local Land Charges,Redfern Travel Ltd,SME,1207293,"2,134.60",Travel & Subsistence,Administration
HM Land Registry,HM Land Registry,28/02/2018,Travel & Subsistence General Duty,Local Lawyer Group,Redfern Travel Ltd,SME,1207293,965.00,Travel & Subsistence,Administration
HM Land Registry,HM Land Registry,28/02/2018,Travel & Subsistence General Duty,Marketing Services Team,Redfern Travel Ltd,SME,1207293,254.50,Travel & Subsistence,Administration
HM Land Registry,HM Land Registry,28/02/2018,Travel & Subsistence General Duty,Nottingham Office,Redfern Travel Ltd,SME,1207293,208.69,Travel & Subsistence,Administration
HM Land Registry,HM Land Registry,28/02/2018,Travel & Subsistence General Duty,Peterborough Office,Redfern Travel Ltd,SME,1207293,204.19,Travel & Subsistence,Administration
HM Land Registry,HM Land Registry,28/02/2018,Travel & Subsistence General Duty,Plymouth Office,Redfern Travel Ltd,SME,1207293,351.75,Travel & Subsistence,Administration
HM Land Registry,HM Land Registry,28/02/2018,Travel & Subsistence General Duty,Product Development & Management,Redfern Travel Ltd,SME,1207293,"1,705.79",Travel & Subsistence,Administration
HM Land Registry,HM Land Registry,28/02/2018,Travel & Subsistence General Duty,Program: Local Land Charges,Redfern Travel Ltd,SME,1207293,"1,438.52",Travel & Subsistence,Administration
HM Land Registry,HM Land Registry,28/02/2018,Travel & Subsistence General Duty,Projects and Programme Centre,Redfern Travel Ltd,SME,1207293,"2,249.40",Travel & Subsistence,Administration
HM Land Registry,HM Land Registry,28/02/2018,Travel & Subsistence General Duty,Property Asset Management Group,Redfern Travel Ltd,SME,1207293,87.11,Travel & Subsistence,Administration
HM Land Registry,HM Land Registry,28/02/2018,Travel & Subsistence General Duty,Research & Data Mining,Redfern Travel Ltd,SME,1207293,438.46,Travel & Subsistence,Administration
HM Land Registry,HM Land Registry,28/02/2018,Travel & Subsistence Overseas Travel,Research & Data Mining,Redfern Travel Ltd,SME,1207293,64.41,Travel & Subsistence,Administration
HM Land Registry,HM Land Registry,28/02/2018,Travel & Subsistence General Duty,Strategy Team,Redfern Travel Ltd,SME,1207293,328.60,Travel & Subsistence,Administration
HM Land Registry,HM Land Registry,28/02/2018,Travel & Subsistence General Duty,Wales Office,Redfern Travel Ltd,SME,1207293,519.71,Travel & Subsistence,Administration
HM Land Registry,HM Land Registry,28/02/2018,Travel & Subsistence General Duty,Weymouth Office,Redfern Travel Ltd,SME,1207293,315.18,Travel & Subsistence,Administration
HM Land Registry,HM Land Registry,28/02/2018,Travel & Subsistence General Duty,Dir: Finance,Redfern Travel Ltd,SME,1207293,306.79,Travel & Subsistence,Administration
HM Land Registry,HM Land Registry,28/02/2018,Travel & Subsistence General Duty,HR Operations,Redfern Travel Ltd,SME,1207293,553.29,Travel & Subsistence,Administration
HM Land Registry,HM Land Registry,28/02/2018,Travel & Subsistence General Duty,Internal Audit,Redfern Travel Ltd,SME,1207293,294.04,Travel & Subsistence,Administration
HM Land Registry,HM Land Registry,28/02/2018,Travel & Subsistence General Duty,International Business Development,Redfern Travel Ltd,SME,1207293,269.20,Travel & Subsistence,Administration
HM Land Registry,HM Land Registry,28/02/2018,Travel & Subsistence General Duty,Communications Team,Redfern Travel Ltd,SME,1207293,467.08,Travel & Subsistence,Administration
HM Land Registry,HM Land Registry,28/02/2018,Travel & Subsistence General Duty,Operations Assurance and Risk,Redfern Travel Ltd,SME,1207293,302.84,Travel & Subsistence,Administration
HM Land Registry,HM Land Registry,28/02/2018,Travel & Subsistence General Duty,Operation Focus,Redfern Travel Ltd,SME,1207293,528.80,Travel & Subsistence,Administration
HM Land Registry,HM Land Registry,28/02/2018,Travel & Subsistence General Duty,Customer Services,Redfern Travel Ltd,SME,1207293,209.53,Travel & Subsistence,Administration
HM Land Registry,HM Land Registry,28/02/2018,Travel & Subsistence General Duty,LR Sports Council,Redfern Travel Ltd,SME,1207293,208.40,Travel & Subsistence,Administration
HM Land Registry,HM Land Registry,28/02/2018,Travel & Subsistence General Duty,Local Lawyer Support Group,Redfern Travel Ltd,SME,1207293,63.80,Travel & Subsistence,Administration
HM Land Registry,HM Land Registry,28/02/2018,Travel & Subsistence General Duty,Service Management - Application Processing,Redfern Travel Ltd,SME,1207293,596.63,Travel & Subsistence,Administration
HM Land Registry,HM Land Registry,15/02/2018,Letter Post,Birkenhead Office,Royal Mail,Large,1206141,"2,014.45",Letter Post,Administration
HM Land Registry,HM Land Registry,15/02/2018,Letter Post,Coventry Office,Royal Mail,Large,1206141,"1,392.50",Letter Post,Administration
HM Land Registry,HM Land Registry,15/02/2018,Letter Post,Croydon Office,Royal Mail,Large,1206141,"5,897.83",Letter Post,Administration
HM Land Registry,HM Land Registry,15/02/2018,Letter Post,Durham Office,Royal Mail,Large,1206141,"5,237.41",Letter Post,Administration
HM Land Registry,HM Land Registry,15/02/2018,Letter Post,Fylde Office,Royal Mail,Large,1206141,"2,548.85",Letter Post,Administration
HM Land Registry,HM Land Registry,15/02/2018,Letter Post,Gloucester Office,Royal Mail,Large,1206141,"2,511.23",Letter Post,Administration
HM Land Registry,HM Land Registry,15/02/2018,Letter Post,Hull Office,Royal Mail,Large,1206141,"3,494.94",Letter Post,Administration
HM Land Registry,HM Land Registry,15/02/2018,Letter Post,IS Service Delivery,Royal Mail,Large,1206141,"20,322.00",Letter Post,Administration
HM Land Registry,HM Land Registry,15/02/2018,Letter Post,Land Charges,Royal Mail,Large,1206141,"1,984.80",Letter Post,Administration
HM Land Registry,HM Land Registry,15/02/2018,Letter Post,Leicester Office,Royal Mail,Large,1206141,"1,685.52",Letter Post,Administration
HM Land Registry,HM Land Registry,15/02/2018,Letter Post,Nottingham Office,Royal Mail,Large,1206141,"2,391.30",Letter Post,Administration
HM Land Registry,HM Land Registry,15/02/2018,Letter Post,Peterborough Office,Royal Mail,Large,1206141,"2,294.93",Letter Post,Administration
HM Land Registry,HM Land Registry,15/02/2018,Letter Post,Plymouth Office,Royal Mail,Large,1206141,"5,954.37",Letter Post,Administration
HM Land Registry,HM Land Registry,15/02/2018,Letter Post,Telford Office,Royal Mail,Large,1206141,911.79,Letter Post,Administration
HM Land Registry,HM Land Registry,15/02/2018,Letter Post,Wales Office,Royal Mail,Large,1206141,"15,043.02",Letter Post,Administration
HM Land Registry,HM Land Registry,15/02/2018,Letter Post,Weymouth Office,Royal Mail,Large,1206141,"1,664.65",Letter Post,Administration
HM Land Registry,HM Land Registry,05/02/2018,Software as a Service (Cloud),Dir: Finance,Specialist Computer Centres Plc - SCC,Large,1204806,"83,790.81",Cloud Computing Services,Administration
HM Land Registry,HM Land Registry,07/02/2018,Fixed Asset Interface Account,Balance Sheet,Specialist Computer Centres Plc - SCC,Large,1205166,"155,220.05",Fixed Assets,Administration
HM Land Registry,HM Land Registry,07/02/2018,Computer Equipment Maintenance,IS Service Delivery,Specialist Computer Centres Plc - SCC,Large,1205166,"26,550.80",Computer Equipment Maintenance,Administration
HM Land Registry,HM Land Registry,07/02/2018,Software as a Service (Cloud),IS Service Delivery,Specialist Computer Centres Plc - SCC,Large,1205168,"88,967.59",Cloud Computing Services,Administration
HM Land Registry,HM Land Registry,15/02/2018,RFS Outsourced Services,Central RFS,TNT (UK) Ltd,Large,1205947,"94,119.08",Regional File Store Outsourced Services,Administration
HM Land Registry,HM Land Registry,15/02/2018,RFS Outsourced Services,Central RFS,TNT (UK) Ltd,Large,1205948,"71,351.64",Regional File Store Outsourced Services,Administration
HM Land Registry,HM Land Registry,05/02/2018,Rates Payable,Weymouth Office,West Dorset District Council,Large,1176979,"4,093.00",Rates Payable,Administration
HM Land Registry,HM Land Registry,06/02/2018,Maps & Plans Data Migration,Forward Scanning,Xerox (UK) Ltd,Large,1205049,"115,553.59",Maps & Plans Data Migration,Administration
HM Land Registry,HM Land Registry,15/02/2018,Assets in the Course of Construction,Balance Sheet,XMA Limited,Large,1206124,"117,913.62",Assets in the Course of Construction,Administration
HM Land Registry,HM Land Registry,15/02/2018,Computer Equipment Maintenance,Dir: Operations,XMA Limited,Large,1206124,"20,490.82",Computer Equipment Maintenance,Administration
